fUST/lending_fUST_20251015
["ID","MTS","AMOUNT","RATE_DAILY","PERIOD"]
[391298521,1760477456390,-1756.898018,0.00030141,30]
[391298522,1760477456399,-1756.898018,0.00030141,30]
[391298523,1760477456409,-205.214337,0.00030141,30]
[391298524,1760477456418,-205.214337,0.00030141,30]
[391298525,1760477456427,-332.930076,0.00030141,30]
[391298526,1760477456437,-205.214337,0.00030141,30]
[391298527,1760477456446,-205.214328,0.00030141,30]
[391298528,1760477456457,-151.0,0.00030141,30]
[391298529,1760477456466,-332.930076,0.00030141,30]
[391298530,1760477456476,-332.930076,0.00030141,30]
[391298531,1760477456485,-332.930076,0.00030141,30]
[391298532,1760477456495,-151.0,0.00030141,30]
[391298533,1760477456504,-151.0,0.00030141,30]
[391298534,1760477456513,-151.0,0.00030141,30]
[391298535,1760477456521,-151.0,0.00030141,30]
[391298536,1760477456531,-151.0,0.00030141,30]
[391298537,1760477456540,-151.0,0.00030141,30]
[391298538,1760477456549,-151.0,0.00030141,30]
[391298539,1760477456558,-248.584319,0.00030141,2]
[391298540,1760477456567,-151.0,0.00030141,30]
[391298541,1760477456577,-248.584319,0.00030141,2]
[391298542,1760477456585,-151.0,0.00030141,30]
[391298543,1760477456595,-156.829808,0.00030141,30]
[391298544,1760477456603,-248.584319,0.00030141,2]
[391298545,1760477456612,-156.829808,0.00030141,30]
[391298546,1760477456621,-248.584325,0.00030141,2]
[391298547,1760477456630,-156.829808,0.00030141,30]
[391298548,1760477456640,-156.829799,0.00030141,30]
[391298549,1760477456648,-5232.623086,0.00030141,30]
[391298550,1760477456658,-5232.623086,0.00030141,30]
[391298551,1760477456667,-5232.623086,0.00030141,30]
[391298552,1760477456676,-5232.623091,0.00030141,30]
[391298553,1760477456686,-259.384196,0.00030141,30]
[391298554,1760477456695,-259.384196,0.00030141,30]
[391298555,1760477456705,-259.384196,0.00030141,30]
[391298556,1760477456715,-259.384188,0.00030141,30]
[391298557,1760477456724,-153.745377,0.00030141,30]
[391298558,1760477456734,-153.745377,0.00030141,30]
[391298559,1760477456743,-151.0,0.00030141,30]
[391298560,1760477456752,-153.745377,0.00030141,30]
[391298561,1760477456761,-151.0,0.00030141,30]
[391298562,1760477456770,-153.745376,0.00030141,30]
[391298563,1760477456780,-151.0,0.00030141,30]
[391298564,1760477456789,-151.0,0.00030141,30]
[391298565,1760477456798,-151.0,0.00030141,30]
[391298566,1760477456807,-665.100187,0.00030141,30]
[391298567,1760477456816,-178.829912,0.00030141,30]
[391298568,1760477456826,-301.99999956,0.00030141,30]
[391298569,1760477456840,-665.100187,0.00030141,30]
[391298570,1760477456854,-178.829912,0.00030141,30]
[391298571,1760477456868,-151.0,0.00030142,30]
[391298572,1760477456879,-151.0,0.00030142,30]
[391298573,1760477456892,-151.0,0.00030142,30]
[391298574,1760477456905,-152.746061,0.00030142,30]
[391298575,1760477456918,-151.0,0.00030142,30]
[391298576,1760477456932,-151.0,0.00030142,30]
[391298577,1760477456944,-151.0,0.00030142,30]
[391298578,1760477456958,-153.261199,0.00030142,30]
[391298579,1760477456970,-151.0,0.00030142,30]
[391298580,1760477456983,-151.0,0.00030142,30]
[391298581,1760477456995,-151.0,0.00030142,30]
[391298582,1760477457008,-151.0,0.00030142,30]
[391298583,1760477457020,-151.0,0.00030142,30]
[391298584,1760477457033,-151.0,0.00030142,30]
[391298585,1760477457047,-151.0,0.00030142,30]
[391298586,1760477457060,-151.0,0.00030142,30]
[391298587,1760477457070,-151.0,0.00030142,30]
[391298588,1760477457081,-151.0,0.00030142,30]
[391298589,1760477457093,-200.0,0.00030144,10]
[391298590,1760477457105,-151.0,0.00030145,30]
[391298591,1760477457118,-151.0,0.00030145,30]
[391298592,1760477457131,-151.0,0.00030145,30]
[391298593,1760477457144,-151.0,0.00030145,30]
[391298594,1760477457158,-151.0,0.00030145,30]
[391298595,1760477457171,-151.0,0.00030145,30]
[391298596,1760477457184,-151.0,0.00030145,30]
[391298597,1760477457194,-151.0,0.00030145,30]
[391298598,1760477457205,-151.0,0.00030145,30]
[391298599,1760477457216,-151.0,0.00030145,30]
[391298600,1760477457229,-151.0,0.00030145,30]
[391298601,1760477457244,-151.0,0.00030145,30]
[391298602,1760477457256,-559.348762,0.00030145,30]
[391298603,1760477457267,-559.348762,0.00030145,30]
[391298604,1760477457278,-559.348762,0.00030145,30]
[391298605,1760477457290,-559.348762,0.00030145,30]
[391298606,1760477457307,-151.0,0.00030145,30]
[391298607,1760477457319,-151.0,0.00030145,30]
[391298608,1760477457329,-151.0,0.00030145,30]
[391298609,1760477457340,-151.0,0.00030145,30]
[391298610,1760477457351,-151.0,0.00030145,30]
[391298611,1760477457363,-151.0,0.00030145,30]
[391298612,1760477457376,-733.441222,0.00030145,30]
[391298613,1760477457387,-733.441222,0.00030145,30]
[391298614,1760477457400,-367.124674,0.00030145,30]
[391298615,1760477457411,-733.441222,0.00030145,30]
[391298616,1760477457423,-367.124674,0.00030145,30]
[391298617,1760477457434,-151.0,0.00030145,2]
[391298618,1760477457445,-733.441222,0.00030145,30]
[391298619,1760477457456,-367.124674,0.00030145,30]
[391298620,1760477457468,-367.124674,0.00030145,30]
[391298621,1760477457479,-159.620219,0.00030145,30]
[391298622,1760477457490,-159.620219,0.00030145,30]
[391298623,1760477457501,-159.620219,0.00030145,30]
[391298624,1760477457512,-159.620219,0.00030145,30]
[391298625,1760477457523,-151.0,0.00030145,30]
[391298626,1760477457535,-213.257511,0.00030145,30]
[391298627,1760477457546,-213.257511,0.00030145,30]
[391298628,1760477457558,-213.257511,0.00030145,30]
[391298629,1760477457569,-213.257511,0.00030145,30]
[391298630,1760477457580,-233.417555,0.00030145,30]
[391298631,1760477457591,-151.0,0.00030145,30]
[391298632,1760477457602,-151.0,0.00030145,30]
[391298633,1760477457614,-311.313551,0.00030145,30]
[391298634,1760477457624,-311.313551,0.00030145,30]
[391298635,1760477457636,-311.313551,0.00030145,30]
[391298636,1760477457647,-311.313551,0.00030145,30]
[391298637,1760477457658,-151.0,0.00030145,30]
[391298638,1760477457674,-151.0,0.00030145,30]
[391298639,1760477457685,-151.0,0.00030145,30]
[391298640,1760477457696,-151.0,0.00030145,30]
[391298641,1760477457708,-156.526527,0.00030145,30]
[391298642,1760477457720,-224.482135,0.00030145,30]
[391298643,1760477457731,-224.482135,0.00030145,30]
[391298644,1760477457743,-224.482135,0.00030145,30]
[391298645,1760477457755,-224.482135,0.00030145,30]
[391298646,1760477457767,-151.0,0.00030145,30]
[391298647,1760477457778,-151.0,0.00030145,30]
[391298648,1760477457790,-151.0,0.00030145,30]
[391298649,1760477457801,-151.0,0.00030145,30]
[391298650,1760477457812,-151.0,0.00030145,30]
[391298651,1760477457823,-151.0,0.00030145,30]
[391298652,1760477457834,-164.51907,0.00030145,30]
[391298653,1760477457846,-249.813622,0.00030145,30]
[391298654,1760477457857,-164.51907,0.00030145,30]
[391298655,1760477457869,-249.813622,0.00030145,30]
[391298656,1760477457881,-164.51907,0.00030145,30]
[391298657,1760477457893,-249.813622,0.00030145,30]
[391298658,1760477458020,-164.51907,0.00030145,30]
[391298659,1760477458041,-249.813622,0.00030145,30]
[391298660,1760477458051,-151.0,0.00030145,30]
[391298661,1760477458062,-151.0,0.00030145,30]
[391298662,1760477458072,-151.0,0.00030145,30]
[391298663,1760477458081,-151.0,0.00030145,30]
[391298664,1760477458092,-152.713522,0.00030145,30]
[391298665,1760477458103,-151.0,0.00030145,30]
[391298666,1760477458113,-275.520264,0.00030145,15]
[391298667,1760477458123,-275.520264,0.00030145,15]
[391298668,1760477458134,-275.520264,0.00030145,15]
[391298669,1760477458144,-275.520264,0.00030145,15]
[391298670,1760477458153,-185.456468,0.00030145,30]
[391298671,1760477458164,-185.456468,0.00030145,30]
[391298672,1760477458174,-185.456468,0.00030145,30]
[391298673,1760477458183,-185.456468,0.00030145,30]
[391298674,1760477458193,-301.78492,0.00030145,30]
[391298675,1760477458203,-301.78492,0.00030145,30]
[391298676,1760477458215,-301.78492,0.00030145,30]
[391298677,1760477458224,-301.78492,0.00030145,30]
[391298678,1760477458234,-151.0,0.00030145,30]
[391298679,1760477458243,-151.0,0.00030145,30]
[391298680,1760477458253,-151.0,0.00030145,30]
[391298681,1760477458263,-188.47372,0.00030145,30]
[391298682,1760477458272,-1082.294524,0.00030145,30]
[391298683,1760477458282,-1082.294524,0.00030145,30]
[391298684,1760477458291,-257.327442,0.00030145,30]
[391298685,1760477458301,-151.0,0.00030145,30]
[391298686,1760477458311,-880.966001,0.00030145,30]
[391298687,1760477458320,-1082.294524,0.00030145,30]
[391298688,1760477458329,-257.327442,0.00030145,30]
[391298689,1760477458338,-151.0,0.00030145,30]
[391298690,1760477458348,-880.966001,0.00030145,30]
[391298691,1760477458357,-1082.294524,0.00030145,30]
[391298692,1760477458367,-257.327442,0.00030145,30]
[391298693,1760477458378,-151.0,0.00030145,30]
[391298694,1760477458387,-880.966001,0.00030145,30]
[391298695,1760477458396,-151.0,0.00030145,30]
[391298696,1760477458406,-880.966001,0.00030145,30]
[391298697,1760477458415,-151.0,0.00030145,30]
[391298698,1760477458424,-151.0,0.00030145,30]
[391298699,1760477458433,-257.327442,0.00030145,30]
[391298700,1760477458442,-151.0,0.00030145,30]
[391298701,1760477458451,-151.0,0.00030145,30]
[391298702,1760477458463,-218.361782,0.00030145,30]
[391298703,1760477458472,-218.361782,0.00030145,30]
[391298704,1760477458482,-218.361782,0.00030145,30]
[391298705,1760477458491,-151.0,0.00030145,30]
[391298706,1760477458501,-218.361782,0.00030145,30]
[391298707,1760477458510,-151.0,0.00030145,30]
[391298708,1760477458519,-151.0,0.00030145,30]
[391298709,1760477458529,-426.0455,0.00030145,30]
[391298710,1760477458538,-426.0455,0.00030145,30]
[391298711,1760477458547,-426.0455,0.00030145,30]
[391298712,1760477458557,-426.0455,0.00030145,30]
[391298713,1760477458566,-423.507122,0.00030145,30]
[391298714,1760477458575,-250.145292,0.00030145,30]
[391298715,1760477458584,-423.507122,0.00030145,30]
[391298716,1760477458593,-151.0,0.00030145,30]
[391298717,1760477458602,-250.145292,0.00030145,30]
[391298718,1760477458612,-423.507122,0.00030145,30]
[391298719,1760477458621,-151.0,0.00030145,30]
[391298720,1760477458630,-250.145292,0.00030145,30]
[391298721,1760477458639,-423.507122,0.00030145,30]
[391298722,1760477458648,-151.0,0.00030145,30]
[391298723,1760477458657,-151.0,0.00030145,30]
[391298724,1760477458666,-250.145292,0.00030145,30]
[391298725,1760477458675,-290.103424,0.00030145,30]
[391298726,1760477458684,-290.103424,0.00030145,30]
[391298727,1760477458693,-290.103424,0.00030145,30]
[391298728,1760477458702,-290.103424,0.00030145,30]
[391298729,1760477458712,-305.523303,0.00030145,30]
[391298730,1760477458721,-305.523303,0.00030145,30]
[391298731,1760477458730,-151.0,0.00030145,30]
[391298732,1760477458739,-305.523303,0.00030145,30]
[391298733,1760477458748,-305.523303,0.00030145,30]
[391298734,1760477458757,-151.0,0.00030145,30]
[391298735,1760477458766,-151.0,0.00030145,30]
[391298736,1760477458775,-1756.898018,0.00030145,30]
[391298737,1760477458785,-177.980029,0.00030145,30]
[391298738,1760477458794,-1756.898018,0.00030145,30]
[391298739,1760477458803,-1756.898018,0.00030145,30]
[391298740,1760477458813,-1756.898018,0.00030145,30]
[391298741,1760477458823,-332.930076,0.00030145,30]
[391298742,1760477458832,-332.930076,0.00030145,30]
[391298743,1760477458841,-332.930076,0.00030145,30]
[391298744,1760477458851,-332.930076,0.00030145,30]
[391298745,1760477458859,-151.0,0.00030145,30]
[391298746,1760477458869,-151.0,0.00030145,30]
[391298747,1760477458878,-500.0,0.00030154,11]
[391298748,1760477458888,-500.0,0.00030154,11]
[391298749,1760477458897,-191.76933915,0.00030155,2]
[391298750,1760477458906,-1008.741032,0.0003016,5]
[391298751,1760477458915,-800.0,0.00030161,2]
[391298752,1760477458924,-800.0,0.00030172,2]
[391298753,1760477458933,-5000.0,0.00030174,30]
[391298754,1760477458943,-5000.0,0.00030174,30]
[391298755,1760477458952,-5000.0,0.00030174,30]
[391298756,1760477458964,-5000.0,0.00030174,30]
[391298757,1760477458974,-5000.0,0.00030174,30]
[391298758,1760477458984,-3246.0,0.00030179,2]
[391298759,1760477458993,-1000.0,0.0003018,5]
[391298760,1760477459002,-1165.226918,0.0003018,5]
[391298761,1760477459011,-800.0,0.00030193,2]
[391298762,1760477459021,-200.0,0.00030199,10]
[391298763,1760477459030,-3019.21,0.000302,2]
[391298764,1760477459040,-6832.64,0.000302,2]
[391298765,1760477459049,-11273.81,0.000302,7]
[391298766,1760477459058,-151.0,0.000302,30]
[391298767,1760477459067,-151.0,0.000302,30]
[391298768,1760477459076,-151.0,0.000302,30]
[391298769,1760477459086,-151.0,0.000302,30]
[391298770,1760477459095,-157.016112,0.000302,30]
[391298771,1760477459104,-151.0,0.000302,30]
[391298772,1760477459113,-151.0,0.000302,30]
[391298773,1760477459123,-151.0,0.000302,30]
[391298774,1760477459131,-151.0,0.000302,30]
[391298775,1760477459141,-151.0,0.000302,30]
[391298776,1760477459149,-151.0,0.000302,30]
[391298777,1760477459159,-151.0,0.000302,30]
[391298778,1760477459167,-151.0,0.000302,30]
[391298779,1760477459176,-151.0,0.000302,30]
[391298780,1760477459185,-151.0,0.000302,30]
[391298781,1760477459195,-151.0,0.000302,30]
[391298782,1760477459203,-559.348762,0.000302,30]
[391298783,1760477459213,-559.348762,0.000302,30]
[391298784,1760477459222,-559.348762,0.000302,30]
[391298785,1760477459231,-559.34875321,0.000302,30]
[391298786,1760477459241,-1000.0,0.000302,5]
[391298787,1760477459250,-151.0,0.000302,30]
[391298788,1760477459259,-1000.0,0.000302,5]
[391298789,1760477459268,-151.0,0.000302,30]
[391298790,1760477459277,-151.0,0.000302,30]
[391298791,1760477459286,-151.0,0.000302,30]
[391298792,1760477459296,-151.0,0.000302,30]
[391298793,1760477459309,-151.0,0.000302,30]
[391298794,1760477459318,-733.441222,0.000302,30]
[391298795,1760477459327,-733.441222,0.000302,30]
[391298796,1760477459337,-367.124674,0.000302,30]
[391298797,1760477459346,-733.441222,0.000302,30]
[391298798,1760477459355,-367.124674,0.000302,30]
[391298799,1760477459364,-733.441226,0.000302,30]
[391298800,1760477459374,-367.124674,0.000302,30]
[391298801,1760477459383,-367.124674,0.000302,30]
[391298802,1760477459393,-159.620219,0.000302,30]
[391298803,1760477459402,-159.620219,0.000302,30]
[391298804,1760477459411,-159.620219,0.000302,30]
[391298805,1760477459420,-159.620212,0.000302,30]
[391298806,1760477459429,-151.0,0.000302,30]
[391298807,1760477459438,-213.257511,0.000302,30]
[391298808,1760477459447,-213.257511,0.000302,30]
[391298809,1760477459456,-213.257511,0.000302,30]
[391298810,1760477459465,-213.257507,0.000302,30]
[391298811,1760477459474,-151.0,0.000302,30]
[391298812,1760477459483,-282.780318,0.000302,30]
[391298813,1760477459492,-311.313551,0.000302,30]
[391298814,1760477459501,-311.313551,0.000302,30]
[391298815,1760477459509,-311.313551,0.000302,30]
[391298816,1760477459518,-311.313555,0.000302,30]
[391298817,1760477459527,-151.0,0.000302,30]
[391298818,1760477459536,-151.0,0.000302,30]
[391298819,1760477459544,-151.0,0.000302,18]
[391298820,1760477459554,-151.0,0.000302,30]
[391298821,1760477459563,-151.0,0.000302,30]
[391298822,1760477459572,-224.482135,0.000302,30]
[391298823,1760477459580,-224.482135,0.000302,30]
[391298824,1760477459590,-224.482135,0.000302,30]
[391298825,1760477459599,-224.482139,0.000302,30]
[391298826,1760477459609,-151.0,0.000302,30]
[391298827,1760477459618,-151.0,0.000302,30]
[391298828,1760477459627,-151.0,0.000302,30]
[391298829,1760477459636,-151.0,0.000302,30]
[391298830,1760477459645,-151.0,0.000302,30]
[391298831,1760477459654,-151.0,0.000302,30]
[391298832,1760477459664,-164.51907,0.000302,30]
[391298833,1760477459673,-249.813622,0.000302,30]
[391298834,1760477459681,-164.51907,0.000302,30]
[391298835,1760477459691,-249.813622,0.000302,30]
[391298836,1760477459700,-164.51907,0.000302,30]
[391298837,1760477459709,-249.813622,0.000302,30]
[391298838,1760477459720,-164.519061,0.000302,30]
[391298839,1760477459729,-249.813628,0.000302,30]
[391298840,1760477459738,-151.0,0.000302,30]
[391298841,1760477459747,-151.0,0.000302,30]
[391298842,1760477459756,-151.0,0.000302,30]
[391298843,1760477459766,-151.0,0.000302,30]
[391298844,1760477459775,-212.610844,0.000302,30]
[391298845,1760477459784,-275.520264,0.000302,15]
[391298846,1760477459793,-275.520264,0.000302,15]
[391298847,1760477459803,-275.520264,0.000302,15]
[391298848,1760477459812,-275.520272,0.000302,15]
[391298849,1760477459821,-150.0,0.000302,10]
[391298850,1760477459831,-185.456468,0.000302,30]
[391298851,1760477459840,-185.456468,0.000302,30]
[391298852,1760477459849,-185.456468,0.000302,30]
[391298853,1760477459859,-185.456464,0.000302,30]
[391298854,1760477459868,-301.78492,0.000302,30]
[391298855,1760477459878,-301.78492,0.000302,30]
[391298856,1760477459887,-301.78492,0.000302,30]
[391298857,1760477459896,-301.78492,0.000302,30]
[391298858,1760477459905,-151.0,0.000302,30]
[391298859,1760477459914,-233.190192,0.000302,30]
[391298860,1760477459923,-151.0,0.000302,30]
[391298861,1760477459933,-1082.294524,0.000302,30]
[391298862,1760477459942,-1082.294524,0.000302,30]
[391298863,1760477459952,-257.327442,0.000302,30]
[391298864,1760477459961,-151.0,0.000302,30]
[391298865,1760477459971,-880.966001,0.000302,30]
[391298866,1760477459980,-1082.294524,0.000302,30]
[391298867,1760477459989,-257.327442,0.000302,30]
[391298868,1760477459999,-151.0,0.000302,30]
[391298869,1760477460008,-880.966001,0.000302,30]
[391298870,1760477460017,-1082.294524,0.000302,30]
[391298871,1760477460027,-151.0,0.000302,30]
[391298872,1760477460036,-880.966001,0.000302,30]
[391298873,1760477460045,-151.0,0.000302,30]
[391298874,1760477460055,-880.965993,0.000302,30]
[391298875,1760477460065,-151.0,0.000302,30]
[391298876,1760477460074,-257.327442,0.000302,30]
[391298877,1760477460084,-151.0,0.000302,30]
[391298878,1760477460093,-257.327433,0.000302,30]
[391298879,1760477460104,-151.0,0.000302,30]
[391298880,1760477460113,-151.0,0.000302,30]
[391298881,1760477460123,-218.361782,0.000302,30]
[391298882,1760477460133,-218.361782,0.000302,30]
[391298883,1760477460142,-218.361782,0.000302,30]
[391298884,1760477460151,-151.0,0.000302,30]
[391298885,1760477460160,-218.361786,0.000302,30]
[391298886,1760477460169,-151.0,0.000302,30]
[391298887,1760477460179,-181.166799,0.000302,30]
[391298888,1760477460188,-426.0455,0.000302,30]
[391298889,1760477460274,-426.0455,0.000302,30]
[391298890,1760477460294,-426.0455,0.000302,30]
[391298891,1760477460307,-426.045504,0.000302,30]
[391298892,1760477460316,-423.507122,0.000302,30]
[391298893,1760477460326,-250.145292,0.000302,30]
[391298894,1760477460336,-423.507122,0.000302,30]
[391298895,1760477460346,-151.0,0.000302,30]
[391298896,1760477460355,-250.145292,0.000302,30]
[391298897,1760477460365,-423.507122,0.000302,30]
[391298898,1760477460375,-250.145292,0.000302,30]
[391298899,1760477460385,-423.507115,0.000302,30]
[391298900,1760477460395,-151.0,0.000302,30]
[391298901,1760477460404,-151.0,0.000302,30]
[391298902,1760477460414,-250.1453,0.000302,30]
[391298903,1760477460423,-290.103424,0.000302,30]
[391298904,1760477460432,-290.103424,0.000302,30]
[391298905,1760477460442,-290.103424,0.000302,30]
[391298906,1760477460451,-290.103425,0.000302,30]
[391298907,1760477460460,-305.523303,0.000302,30]
[391298908,1760477460470,-305.523303,0.000302,30]
[391298909,1760477460479,-151.0,0.000302,30]
[391298910,1760477460489,-305.523303,0.000302,30]
[391298911,1760477460498,-305.5233,0.000302,30]
[391298912,1760477460507,-151.0,0.000302,30]
[391298913,1760477460516,-151.0,0.000302,30]
[391298914,1760477460526,-1756.898018,0.000302,30]
[391298915,1760477460535,-1756.898018,0.000302,30]
[391298916,1760477460544,-1756.898018,0.000302,30]
[391298917,1760477460553,-1756.898018,0.000302,30]
[391298918,1760477460562,-1500.0,0.000302,3]
[391298919,1760477460571,-332.930076,0.000302,30]
[391298920,1760477460581,-332.930076,0.000302,30]
[391298921,1760477460590,-332.930076,0.000302,30]
[391298922,1760477460599,-332.930072,0.000302,30]
[391298923,1760477460609,-151.0,0.000302,30]
[391298924,1760477460618,-151.0,0.000302,30]
[391298925,1760477460627,-205.464047,0.000302,2]
[391298926,1760477460636,-800.0,0.00030226,2]
[391298927,1760477460645,-800.0,0.00030234,2]
[391298928,1760477460655,-8359.3072822,0.00030241,2]
[391298929,1760477460664,-191.76933915,0.00030241,2]
[391298930,1760477460673,-250.0,0.000303,7]
[391298931,1760477460682,-165.6,0.000303,7]
[391298932,1760477460691,-151.0,0.00030301,30]
[391298933,1760477460700,-154.060404,0.00030301,30]
[391298934,1760477460710,-151.0,0.00030301,30]
[391298935,1760477460720,-216.466699,0.00030305,2]
[391298936,1760477460729,-213.670915,0.00030305,2]
[391298937,1760477460738,-1096.0,0.00030322,2]
[391298938,1760477460747,-800.0,0.00030324,2]
[391298939,1760477460756,-800.0,0.00030326,2]
[391298940,1760477460765,-800.0,0.00030326,2]
[391298941,1760477460774,-800.0,0.00030326,2]
[391298942,1760477460784,-249.53072097,0.00030328,30]
[391298943,1760477460793,-46880.25271408,0.0003034,2]
[391298944,1760477460802,-184.85437379,0.0003034,2]
[391298945,1760477460812,-800.0,0.0003034,2]
[391298946,1760477460821,-552060.24615085,0.00030341,7]
[391298952,1760477775335,-3000000.0,0.00030443,20]
[391298953,1760477784471,-192702.62444452,0.00030443,20]
[391298954,1760477784502,-5500.0,0.00030443,30]
[391298955,1760477784529,-5500.0,0.00030443,30]
[391298956,1760477784556,-5500.0,0.00030443,30]
[391298957,1760477784582,-2000.0,0.00030443,30]
[391298958,1760477784609,-2000.0,0.00030443,30]
[391298959,1760477784635,-5278.0171147,0.00030443,35]
[391298960,1760477784663,-1533524.46114337,0.00030443,20]
[391298961,1760477784692,-4907.14,0.00030443,40]
[391298962,1760477784720,-205576.00815756,0.00030443,20]
[391298963,1760477784747,-182867.63951055,0.00030443,20]
[391298964,1760477784774,-103376.76516312,0.00030443,20]
[391298965,1760477784800,-517.55024754,0.00030443,30]
[391298966,1760477784827,-161603.00795603,0.00030443,20]
[391298967,1760477784852,-29116.33819729,0.00030443,30]
[391298968,1760477784879,-1101.0,0.00030443,30]
[391298969,1760477784906,-751.3166784,0.00030443,35]
[391298970,1760477784933,-248.03675566,0.00030443,30]
[391298971,1760477784963,-557930.09463126,0.00030443,20]
[391298972,1760477791871,-715002.80026731,0.00030443,20]
[391298973,1760477791898,-5810386.98478562,0.00030443,20]
[391298974,1760477791925,-474610.21494707,0.00030443,20]
[391298975,1760477963699,-5383.11322438,0.00030448,30]
[391298976,1760477963730,-716.64,0.00030448,40]
[391298977,1760477963761,-2000.0,0.00030448,30]
[391298978,1760477963791,-2000.0,0.00030448,30]
[391298979,1760477963820,-1101.0,0.00030448,30]
[391298980,1760477963851,-1424273.6667,0.00030448,30]
[391298981,1760477963884,-307.42244575,0.00030448,60]
[391298982,1760478020431,1157068.1539,0.00030448,30]
[391298985,1760478167745,2000.0,0.00030448,30]
[391298986,1760478168220,2000.0,0.00030448,30]
[391298987,1760478168629,1101.0,0.00030448,30]
[391299013,1760478631968,-227.5,0.000193,2]
[391299015,1760478631978,-150.0,0.000193,2]
[391299017,1760478631987,-150.0,0.00019497,2]
[391299019,1760478631996,-172.5,0.000199,2]
[391299021,1760478632006,-195.0,0.000205,2]
[391299022,1760478632015,-150.0,0.00020523,2]
[391299023,1760478632024,-217.5,0.000211,2]
[391299024,1760478632034,-150.0,0.00021411,2]
[391299025,1760478632043,-240.0,0.000217,2]
[391299026,1760478632053,-262.5,0.000223,2]
[391299027,1760478632062,-193.7,0.00022389,2]
[391299029,1760478632071,-666.0,0.00022989,2]
[391299031,1760478632081,-160.0,0.00023,2]
[391299033,1760478632090,-171.968618,0.00023113,2]
[391299035,1760478632099,-242.13,0.0002322,2]
[391299037,1760478632108,-500.0,0.00023678,2]
[391299039,1760478632117,-500.0,0.00023764,2]
[391299041,1760478632127,-500.0,0.0002392,2]
[391299043,1760478632136,-500.0,0.00024059,2]
[391299044,1760478632145,-290.55,0.00024148,2]
[391299047,1760478632154,-500.0,0.00024234,2]
[391299050,1760478632164,-179.69451932,0.00024252,2]
[391299051,1760478632173,-500.0,0.00024368,2]
[391299052,1760478632183,-500.0,0.00024524,2]
[391299054,1760478632192,-1200.0,0.00024657,2]
[391299056,1760478632202,-380.0,0.00024658,2]
[391299058,1760478632211,-300.0,0.00024658,2]
[391299060,1760478632220,-500.0,0.00024762,2]
[391299062,1760478632229,-300.0,0.00024762,2]
[391299064,1760478632239,-300.0,0.00024762,2]
[391299066,1760478632249,-300.0,0.00024762,2]
[391299067,1760478632259,-300.0,0.00024762,2]
[391299069,1760478632268,-177.90835515,0.000248,2]
[391299071,1760478632278,-471.0,0.0002487,2]
[391299074,1760478632288,-417.15472785,0.00024871,2]
[391299076,1760478632297,-235.49771997,0.000249,2]
[391299078,1760478632307,-190.72991665,0.000249,2]
[391299080,1760478632316,-163.99016727,0.000249,2]
[391299082,1760478632325,-1827.70909118,0.000249,2]
[391299084,1760478632334,-1616.40857039,0.000249,2]